fUST/lending_fUST_20250705
["ID","MTS","AMOUNT","RATE_DAILY","PERIOD"]
[369655319,1751680239197,-500.0,0.00019904,2]
[369655321,1751680239206,-500.0,0.00019904,2]
[369655322,1751680239215,-200.0,0.00019953,2]
[369655323,1751680239225,-714.0,0.0002,2]
[369655324,1751680239235,-460.0,0.0002,2]
[369655325,1751680239244,-460.0,0.0002,2]
[369655326,1751680239253,-460.0,0.0002,2]
[369655327,1751680239262,-460.0,0.0002,2]
[369655328,1751680239272,-460.0,0.0002,2]
[369655329,1751680239281,-598.18,0.0002,2]
[369655330,1751680239290,-460.0,0.0002,2]
[369655331,1751680239299,-460.0,0.0002,2]
[369655332,1751680239308,-460.0,0.0002,2]
[369655333,1751680239318,-606.03184306,0.0002,2]
[369655334,1751680239327,-833.74,0.0002,2]
[369655335,1751680239336,-460.0,0.0002,2]
[369655336,1751680239345,-460.0,0.0002,2]
[369655337,1751680239354,-331.89371349,0.0002,2]
[369655338,1751680239364,-164.54413374,0.0002,2]
[369655339,1751680239373,-460.0,0.0002,2]
[369655340,1751680239382,-460.0,0.0002,2]
[369655341,1751680239392,-460.0,0.0002,2]
[369655342,1751680239401,-460.0,0.0002,2]
[369655343,1751680239410,-278.03721764,0.0002,2]
[369655344,1751680239419,-460.0,0.0002,2]
[369655345,1751680239428,-460.0,0.0002,2]
[369655346,1751680239438,-460.0,0.0002,2]
[369655347,1751680239449,-539.76976947,0.0002,2]
[369655348,1751680239458,-460.0,0.0002,2]
[369655349,1751680239467,-460.0,0.0002,2]
[369655350,1751680239480,-471.73677759,0.0002,2]
[369655351,1751680239489,-215.389,0.00020041,2]
[369655352,1751680239499,-200.0,0.00020043,2]
[369655353,1751680239508,-262.67945403,0.00020098,2]
[369655354,1751680239518,-460.0,0.00020098,2]
[369655355,1751680239528,-289.70373421,0.00020098,2]
[369655356,1751680239537,-460.0,0.00020098,2]
[369655357,1751680239548,-229.67124202,0.00020098,2]
[369655358,1751680239557,-517.82,0.00020099,2]
[369655359,1751680239567,-532.87,0.00020099,2]
[369655360,1751680239576,-517.82,0.00020101,2]
[369655361,1751680239585,-517.82,0.00020101,2]
[369655362,1751680239594,-532.87,0.00020101,2]
[369655363,1751680239603,-532.87,0.00020101,2]
[369655364,1751680239612,-461.9791229,0.00020102,2]
[369655365,1751680239621,-460.56550218,0.00020102,2]
[369655366,1751680239630,-516.34860669,0.00020102,2]
[369655367,1751680239640,-473.26324364,0.00020102,2]
[369655368,1751680239649,-460.83728932,0.00020102,2]
[369655370,1751680239658,-460.73871211,0.00020102,2]
[369655372,1751680239668,-460.0,0.00020102,2]
[369655374,1751680239677,-460.93383793,0.00020102,2]
[369655376,1751680239686,-248.28955574,0.00020102,2]
[369655377,1751680239696,-461.79147146,0.00020102,2]
[369655378,1751680239706,-461.01378638,0.00020102,2]
[369655379,1751680239715,-463.24156713,0.00020102,2]
[369655380,1751680239724,-462.93499334,0.00020102,2]
[369655381,1751680239733,-462.16421179,0.00020102,2]
[369655382,1751680239742,-460.87070524,0.00020102,2]
[369655383,1751680239751,-464.63591698,0.00020102,2]
[369655384,1751680239760,-463.22433803,0.00020102,2]
[369655385,1751680239770,-460.0,0.00020102,2]
[369655386,1751680239779,-460.0,0.00020102,2]
[369655387,1751680239788,-522.99310749,0.00020102,2]
[369655388,1751680239798,-495.8368673,0.00020102,2]
[369655390,1751680239914,-420.38307245,0.00020102,2]
[369655391,1751680239924,-183.32802774,0.00020102,2]
[369655392,1751680239935,-309.6527643,0.00020102,2]
[369655393,1751680239945,-491.79041774,0.00020102,2]
[369655394,1751680239954,-554.58138863,0.00020107,2]
[369655395,1751680239963,-200.0,0.00020134,2]
[369655396,1751680239972,-200.0,0.00020224,2]
[369655397,1751680239981,-460.0,0.00020273,2]
[369655398,1751680239990,-306.43424398,0.00020273,2]
[369655399,1751680240000,-460.0,0.00020273,2]
[369655400,1751680240009,-460.0,0.00020273,2]
[369655401,1751680240019,-460.0,0.00020273,2]
[369655402,1751680240028,-598.18,0.00020273,2]
[369655403,1751680240037,-460.0,0.00020273,2]
[369655404,1751680240047,-460.0,0.00020273,2]
[369655405,1751680240056,-460.0,0.00020273,2]
[369655406,1751680240065,-833.74,0.00020273,2]
[369655407,1751680240074,-460.0,0.00020273,2]
[369655408,1751680240083,-177.80650802,0.00020273,2]
[369655409,1751680240092,-460.0,0.00020273,2]
[369655410,1751680240100,-460.0,0.00020273,2]
[369655411,1751680240109,-370.57975332,0.00020273,2]
[369655412,1751680240118,-460.0,0.00020273,2]
[369655413,1751680240127,-460.0,0.00020273,2]
[369655414,1751680240136,-460.0,0.00020273,2]
[369655415,1751680240145,-460.0,0.00020273,2]
[369655416,1751680240154,-460.0,0.00020273,2]
[369655417,1751680240163,-224.35271245,0.00020273,2]
[369655418,1751680240171,-554.58138863,0.00020314,3]
[369655419,1751680240180,-200.0,0.00020315,2]
[369655420,1751680240190,-376.63,0.00020372,2]
[369655421,1751680240199,-331.83,0.00020372,2]
[369655422,1751680240208,-158.77380399,0.00020376,2]
[369655423,1751680240217,-152.97326864,0.00020376,2]
[369655424,1751680240226,-255.29746289,0.00020376,2]
[369655425,1751680240235,-200.0,0.00020405,2]
[369655426,1751680240244,-503.92640228,0.00020452,2]
[369655427,1751680240253,-490.25199645,0.00020452,2]
[369655428,1751680240262,-500.66688924,0.00020452,2]
[369655429,1751680240270,-500.54694756,0.00020452,2]
[369655430,1751680240279,-501.97210893,0.00020452,2]
[369655431,1751680240288,-1000.0,0.00020452,2]
[369655432,1751680240297,-200.0,0.00020496,2]
[369655433,1751680240306,-554.58138863,0.00020521,3]
[369655434,1751680240316,-3159.12,0.00020538,3]
[369655435,1751680240325,-1579.56,0.00020538,3]
[369655436,1751680240334,-789.78,0.00020538,3]
[369655437,1751680240343,-394.9,0.00020538,3]
[369655438,1751680240352,-4902.26328063,0.00020538,3]
[369655439,1751680240361,-460.0,0.00020547,2]
[369655440,1751680240370,-460.0,0.00020547,2]
[369655441,1751680240379,-460.0,0.00020547,2]
[369655442,1751680240388,-460.0,0.00020547,2]
[369655443,1751680240397,-598.18,0.00020547,2]
[369655444,1751680240406,-460.0,0.00020547,2]
[369655445,1751680240416,-460.0,0.00020547,2]
[369655447,1751680240426,-460.0,0.00020547,2]
[369655448,1751680240435,-833.74,0.00020547,2]
[369655449,1751680240445,-460.0,0.00020547,2]
[369655450,1751680240454,-460.0,0.00020547,2]
[369655451,1751680240462,-449.25646302,0.00020547,2]
[369655452,1751680240479,-460.0,0.00020547,2]
[369655453,1751680240488,-460.0,0.00020547,2]
[369655454,1751680240497,-460.0,0.00020547,2]
[369655455,1751680240505,-378.66750215,0.00020547,2]
[369655456,1751680240515,-460.0,0.00020547,2]
[369655458,1751680240524,-410.93453655,0.00020578,2]
[369655459,1751680240533,-200.0,0.00020586,2]
[369655460,1751680240544,-434.06645072,0.00020588,2]
[369655461,1751680240554,-200.0,0.00020677,2]
[369655462,1751680240564,-554.58138863,0.00020728,3]
[369655463,1751680240573,-200.0,0.00020767,2]
[369655464,1751680240582,-460.0,0.00020821,2]
[369655465,1751680240592,-460.0,0.00020821,2]
[369655466,1751680240601,-460.0,0.00020821,2]
[369655467,1751680240610,-460.0,0.00020821,2]
[369655468,1751680240619,-598.18,0.00020821,2]
[369655469,1751680240628,-460.0,0.00020821,2]
[369655470,1751680240638,-273.7520016,0.00020821,2]
[369655471,1751680240647,-151.05340182,0.00020821,2]
[369655472,1751680240656,-833.74,0.00020821,2]
[369655473,1751680240665,-460.0,0.00020821,2]
[369655474,1751680240674,-460.0,0.00020821,2]
[369655475,1751680240683,-460.0,0.00020821,2]
[369655476,1751680240693,-460.0,0.00020821,2]
[369655477,1751680240702,-460.0,0.00020821,2]
[369655478,1751680240711,-239.74310982,0.00020821,2]
[369655479,1751680240721,-200.0,0.00020858,2]
[369655481,1751680240730,-554.58138863,0.00020934,4]
[369655482,1751680240739,-200.0,0.00020948,2]
[369655483,1751680240747,-1500.0,0.00021,2]
[369655484,1751680240756,-200.0,0.00021039,2]
[369655485,1751680240765,-2051.56,0.00021078,2]
[369655486,1751680240774,-460.0,0.00021095,2]
[369655487,1751680240782,-460.0,0.00021095,2]
[369655488,1751680240791,-460.0,0.00021095,2]
[369655489,1751680240800,-460.0,0.00021095,2]
[369655490,1751680240809,-598.18,0.00021095,2]
[369655491,1751680240819,-460.0,0.00021095,2]
[369655492,1751680240828,-833.74,0.00021095,2]
[369655493,1751680240838,-301.36747235,0.00021095,2]
[369655494,1751680240847,-460.0,0.00021095,2]
[369655495,1751680240856,-460.0,0.00021095,2]
[369655496,1751680240865,-460.0,0.00021095,2]
[369655497,1751680240873,-460.0,0.00021095,2]
[369655498,1751680240883,-200.0,0.00021129,2]
[369655499,1751680240892,-554.58138863,0.00021141,4]
[369655500,1751680240902,-168.0,0.00021217,2]
[369655501,1751680240911,-200.0,0.0002122,2]
[369655502,1751680240920,-168.0,0.00021224,2]
[369655503,1751680240929,-517.82,0.00021244,2]
[369655504,1751680240939,-532.87,0.00021244,2]
[369655505,1751680240948,-160.98598009,0.00021245,5]
[369655506,1751680240957,-200.0,0.0002131,2]
[369655507,1751680240966,-410.93453655,0.00021333,2]
[369655508,1751680240974,-500.0,0.00021336,2]
[369655509,1751680240983,-216.69717772,0.00021336,2]
[369655510,1751680240991,-702.6358805,0.00021336,2]
[369655511,1751680241001,-25000.0,0.00021336,2]
[369655512,1751680241009,-500.0,0.00021336,2]
[369655513,1751680241019,-17259.76334063,0.00021336,2]
[369655514,1751680241028,-500.0,0.00021336,2]
[369655515,1751680241036,-500.0,0.00021336,2]
[369655516,1751680241045,-500.0,0.00021336,2]
[369655517,1751680241054,-500.0,0.00021336,2]
[369655518,1751680241062,-500.0,0.00021336,2]
[369655519,1751680241071,-500.0,0.00021336,2]
[369655520,1751680241080,-207.4,0.00021336,2]
[369655521,1751680241088,-500.0,0.00021336,2]
[369655522,1751680241097,-500.0,0.00021336,2]
[369655523,1751680241106,-5000.0,0.00021336,2]
[369655524,1751680241115,-1365.64456465,0.00021336,2]
[369655525,1751680241123,-500.0,0.00021336,2]
[369655526,1751680241132,-500.0,0.00021336,2]
[369655527,1751680241141,-554.58138863,0.00021348,5]
[369655528,1751680241150,-460.0,0.00021369,2]
[369655529,1751680241159,-460.0,0.00021369,2]
[369655530,1751680241167,-460.0,0.00021369,2]
[369655531,1751680241176,-460.0,0.00021369,2]
[369655532,1751680241185,-598.18,0.00021369,2]
[369655533,1751680241194,-584.76176008,0.00021369,2]
[369655534,1751680241203,-833.74,0.00021369,2]
[369655535,1751680241211,-460.0,0.00021369,2]
[369655536,1751680241220,-460.0,0.00021369,2]
[369655537,1751680241229,-460.0,0.00021369,2]
[369655538,1751680241238,-460.0,0.00021369,2]
[369655539,1751680241246,-200.0,0.00021401,2]
[369655540,1751680241255,-168.0,0.00021423,2]
[369655541,1751680241264,-64443.42738855,0.00021425,2]
[369655542,1751680241273,-209.76808033,0.00021425,2]
[369655543,1751680241282,-200.0,0.00021491,2]
[369655544,1751680241291,-2000.0,0.00021548,2]
[369655545,1751680241300,-554.58138863,0.00021555,5]
[369655546,1751680241309,-460.0,0.00021643,2]
[369655547,1751680241319,-460.0,0.00021643,2]
[369655548,1751680241328,-460.0,0.00021643,2]
[369655549,1751680241337,-460.0,0.00021643,2]
[369655550,1751680241346,-598.18,0.00021643,2]
[369655551,1751680241355,-833.74,0.00021643,2]
[369655552,1751680241364,-186.65426922,0.00021643,2]
[369655553,1751680241373,-460.0,0.00021643,2]
[369655554,1751680241383,-460.0,0.00021643,2]
[369655555,1751680241392,-460.0,0.00021643,2]
[369655556,1751680241401,-5000.0,0.00021644,2]
[369655557,1751680241410,-5000.0,0.00021644,2]
[369655558,1751680241420,-5000.0,0.00021644,2]
[369655559,1751680241430,-5000.0,0.00021644,2]
[369655560,1751680241439,-5000.0,0.00021644,2]
[369655561,1751680241449,-5000.0,0.00021644,2]
[369655562,1751680241458,-5000.0,0.00021644,2]
[369655563,1751680241467,-5000.0,0.00021644,2]
[369655564,1751680241481,-5000.0,0.00021644,2]
[369655565,1751680241490,-5000.0,0.00021644,2]
[369655566,1751680241499,-5000.0,0.00021644,2]
[369655567,1751680241509,-5000.0,0.00021644,2]
[369655568,1751680241519,-4852.74565,0.00021644,2]
[369655569,1751680241528,-151.0,0.00021644,2]
[369655570,1751680241538,-151.0,0.00021644,2]
[369655571,1751680241548,-517.82,0.00021698,2]
[369655572,1751680241557,-532.87,0.00021698,2]
[369655573,1751680241567,-209.76808033,0.00021699,2]
[369655574,1751680241577,-517.82,0.00021699,2]
[369655575,1751680241586,-517.82,0.00021699,2]
[369655576,1751680241595,-517.82,0.00021699,2]
[369655577,1751680241604,-517.82,0.00021699,2]
[369655578,1751680241614,-517.82,0.00021699,2]
[369655579,1751680241623,-517.82,0.00021699,2]
[369655580,1751680241633,-532.87,0.00021699,2]
[369655581,1751680241642,-532.87,0.00021699,2]
[369655582,1751680241651,-532.87,0.00021699,2]
[369655583,1751680241660,-532.87,0.00021699,2]
[369655584,1751680241670,-532.87,0.00021699,2]
[369655585,1751680241679,-532.87,0.00021699,2]
[369655586,1751680241688,-168.0,0.00021714,2]
[369655587,1751680241697,-554.58138863,0.00021762,5]
[369655588,1751680241707,-151.0,0.000218,4]
[369655589,1751680241716,-517.82,0.00021801,2]
[369655590,1751680241725,-532.87,0.00021801,2]
[369655591,1751680241735,-501.07307473,0.00021917,2]
[369655592,1751680241744,-460.0,0.00021917,2]
[369655593,1751680241753,-460.0,0.00021917,2]
[369655594,1751680241762,-460.0,0.00021917,2]
[369655595,1751680241772,-355.01446437,0.00021917,2]
[369655596,1751680241781,-598.18,0.00021917,2]
[369655597,1751680241790,-833.74,0.00021917,2]
[369655598,1751680241799,-460.0,0.00021917,2]
[369655599,1751680241809,-460.0,0.00021917,2]
[369655600,1751680241818,-206.85414194,0.00021917,2]
[369655601,1751680241827,-251.75809991,0.00021918,2]
[369655602,1751680241837,-409.01805368,0.00021918,7]
[369655603,1751680241846,-554.58138863,0.00021969,6]
[369655604,1751680241856,-517.82,0.00021999,2]
[369655605,1751680241866,-517.82,0.00021999,2]
[369655606,1751680241875,-532.87,0.00021999,2]
[369655607,1751680241885,-532.87,0.00021999,2]
[369655608,1751680241894,-168.0,0.0002201,2]
[369655609,1751680241903,-157.59055,0.00022013,7]
[369655610,1751680241912,-151.0,0.00022013,7]
[369655611,1751680241921,-151.0,0.00022013,7]
[369655612,1751680241930,-151.0,0.00022013,7]
[369655613,1751680242036,-370.386491,0.00022013,7]
[369655614,1751680242046,-370.386491,0.00022013,7]
[369655615,1751680242055,-5000.0,0.00022013,3]
[369655616,1751680242065,-170.837457,0.0002204,4]
[369655617,1751680242074,-2634.09956158,0.00022045,2]
[369655618,1751680242083,-407.396,0.00022057,2]
[369655619,1751680242092,-410.93453655,0.00022087,2]
[369655620,1751680242101,-373004.58447,0.00022095,4]
[369655621,1751680242110,-1646.68652668,0.00022096,2]
[369655622,1751680242119,-151.0,0.000221,8]
[369655623,1751680242128,-151.0,0.000221,6]
[369655624,1751680242137,-168.0,0.00022116,2]
[369655625,1751680242146,-151.0,0.00022159,6]
[369655626,1751680242155,-554.58138863,0.00022176,6]
[369655627,1751680242164,-460.0,0.00022191,2]
[369655628,1751680242179,-460.0,0.00022191,2]
[369655629,1751680242193,-460.0,0.00022191,2]
[369655630,1751680242202,-598.18,0.00022191,2]
[369655631,1751680242211,-833.74,0.00022191,2]
[369655632,1751680242220,-303.65958126,0.00022191,2]
[369655633,1751680242229,-460.0,0.00022191,2]
[369655634,1751680242239,-151.0,0.000222,8]
[369655635,1751680242249,-151.0,0.000222,9]
[369655636,1751680242258,-168.0,0.00022272,2]
[369655637,1751680242267,-56531.57937768,0.00022275,2]
[369655638,1751680242276,-3573.80504586,0.00022275,2]
[369655639,1751680242285,-151.442084,0.00022275,7]
[369655640,1751680242294,-151.442084,0.00022275,7]
[369655641,1751680242303,-206.12918066,0.00022275,3]
[369655642,1751680242312,-151.0,0.00022275,3]
[369655643,1751680242321,-151.0,0.00022275,3]
[369655644,1751680242330,-151.0,0.00022275,3]
[369655645,1751680242339,-215.27270685,0.00022275,3]
[369655646,1751680242349,-152.616806,0.00022275,7]
[369655647,1751680242358,-198.67216,0.00022275,7]
[369655648,1751680242367,-168.0,0.00022275,2]
[369655649,1751680242376,-7221.96,0.000223,7]
[369655650,1751680242385,-151.0,0.000223,8]
[369655651,1751680242394,-554.58138863,0.00022383,7]
[369655652,1751680242403,-169.4978441,0.0002239,2]
[369655653,1751680242413,-2000.0,0.000224,2]
[369655654,1751680242422,-151.0,0.000224,10]
[369655655,1751680242431,-161.92,0.000224,31]
[369655656,1751680242440,-161.92,0.000224,31]
[369655657,1751680242449,-161.92,0.000224,31]
[369655658,1751680242458,-161.92,0.000224,31]
[369655659,1751680242468,-161.92,0.000224,31]
[369655660,1751680242481,-161.92,0.000224,31]
[369655661,1751680242490,-161.92,0.000224,31]
[369655662,1751680242498,-1006.879701,0.000224,5]
[369655663,1751680242507,-188.674179,0.000224,2]
[369655664,1751680242516,-1160.3,0.00022454,6]
[369655665,1751680242526,-460.0,0.00022465,2]
[369655666,1751680242535,-460.0,0.00022465,2]
[369655667,1751680242545,-353.10931888,0.00022465,2]
[369655668,1751680242555,-598.18,0.00022465,2]
[369655669,1751680242565,-833.74,0.00022465,2]
[369655671,1751680242574,-460.0,0.00022465,2]
[369655674,1751680242583,-1000.0,0.00022465,2]
[369655676,1751680242592,-542.48153215,0.00022465,2]
[369655678,1751680242601,-201.0,0.0002247,5]
[369655680,1751680242610,-517.82,0.00022479,2]
[369655682,1751680242619,-532.87,0.00022479,2]
[369655684,1751680242628,-151.0,0.0002248,5]
[369655685,1751680242638,-151.0,0.0002248,5]
[369655687,1751680242648,-151.0,0.0002248,5]
[369655688,1751680242658,-151.0,0.0002248,5]
[369655689,1751680242667,-151.0,0.0002248,5]
[369655690,1751680242677,-500.0,0.00022489,10]
[369655691,1751680242686,-517.82,0.00022489,2]
[369655693,1751680242696,-517.82,0.00022489,2]
[369655694,1751680242706,-517.82,0.00022489,2]
[369655695,1751680242715,-517.82,0.00022489,2]
[369655696,1751680242725,-517.82,0.00022489,2]
[369655697,1751680242735,-517.82,0.00022489,2]
[369655698,1751680242745,-517.82,0.00022489,2]
[369655699,1751680242755,-517.95492571,0.00022489,2]
[369655700,1751680242764,-532.87,0.00022489,2]
[369655701,1751680242773,-532.87,0.00022489,2]
[369655702,1751680242782,-532.87,0.00022489,2]
[369655703,1751680242791,-532.87,0.00022489,2]
[369655704,1751680242800,-532.87,0.00022489,2]
[369655705,1751680242809,-532.87,0.00022489,2]
[369655706,1751680242818,-532.87,0.00022489,2]
[369655707,1751680242827,-532.87575235,0.00022489,2]
[369655708,1751680242836,-4000.0,0.00022489,4]
[369655709,1751680242846,-1103.10014175,0.0002249,2]
[369655710,1751680242855,-4625.81599937,0.0002249,2]
[369655712,1751680242866,-115356.86058903,0.0002249,7]
[369655713,1751680242875,-231366.10998821,0.0002249,7]
[369655714,1751680242919,-75299.4815325,0.0002249,7]
[369655715,1751680242928,-151.0,0.0002249,7]
[369655716,1751680242939,-151.0,0.0002249,7]
[369655717,1751680242948,-151.0,0.0002249,7]
[369655718,1751680242960,-151.0,0.0002249,7]
[369655719,1751680242973,-151.0,0.0002249,7]
[369655720,1751680242988,-151.0,0.0002249,7]
[369655721,1751680243001,-151.0,0.0002249,7]
[369655722,1751680243012,-151.0,0.0002249,7]
[369655723,1751680243032,-151.0,0.0002249,7]
[369655724,1751680243045,-151.155561,0.0002249,7]
[369655725,1751680243057,-4182.16633525,0.0002249,5]
[369655726,1751680243071,-151.0,0.0002249,7]
[369655727,1751680243084,-151.0,0.0002249,7]
[369655728,1751680243097,-151.0,0.0002249,7]
[369655729,1751680243110,-151.0,0.0002249,7]
[369655730,1751680243123,-153.451741,0.0002249,7]
[369655731,1751680243136,-174.99901,0.0002249,7]
[369655732,1751680243148,-174.99901,0.0002249,7]
[369655733,1751680243161,-151.0,0.0002249,7]
[369655734,1751680243172,-174.99901,0.0002249,7]
[369655735,1751680243186,-174.99901,0.0002249,7]
[369655736,1751680243199,-151.0,0.0002249,7]
[369655737,1751680243212,-151.0,0.0002249,7]
[369655738,1751680243223,-151.442084,0.0002249,7]
[369655739,1751680243236,-151.442084,0.0002249,7]
[369655740,1751680243248,-151.442084,0.0002249,7]
[369655741,1751680243261,-151.442084,0.0002249,7]
[369655742,1751680243274,-151.0,0.0002249,7]
[369655743,1751680243287,-151.0,0.0002249,7]
[369655744,1751680243299,-151.0,0.0002249,6]
[369655745,1751680243313,-151.0,0.0002249,7]
[369655746,1751680243327,-151.0,0.0002249,7]
[369655747,1751680243342,-153.60572,0.0002249,7]
[369655748,1751680243352,-370.386491,0.0002249,7]
[369655749,1751680243362,-370.386491,0.0002249,7]
[369655750,1751680243375,-370.386491,0.0002249,7]
[369655751,1751680243386,-370.386491,0.0002249,7]
[369655752,1751680243401,-151.0,0.0002249,7]
[369655754,1751680243414,-151.0,0.0002249,7]
[369655755,1751680243424,-151.0,0.0002249,7]
[369655756,1751680243435,-151.0,0.0002249,7]
[369655757,1751680243447,-151.0,0.0002249,7]
[369655758,1751680243461,-151.0,0.0002249,7]
[369655759,1751680243476,-151.0,0.0002249,7]
[369655760,1751680243487,-151.0,0.0002249,7]
[369655761,1751680243498,-151.500653,0.0002249,7]
[369655762,1751680243509,-500.0,0.00022499,10]
[369655763,1751680243524,-500.0,0.00022499,10]
[369655764,1751680243535,-500.0,0.00022499,10]
[369655765,1751680243547,-500.0,0.00022499,10]
[369655766,1751680243558,-500.0,0.00022499,10]
[369655767,1751680243570,-500.0,0.00022499,10]
[369655768,1751680243581,-500.0,0.00022499,10]
[369655769,1751680243592,-500.0,0.00022499,10]
[369655770,1751680243604,-501.12621999,0.00022499,10]
[369655771,1751680243616,-1004.56386186,0.000225,2]
[369655772,1751680243627,-149838.61259651,0.000225,2]
[369655773,1751680243643,-460.0,0.000225,2]
[369655774,1751680243844,-468.942,0.00020538,3]
[369655777,1751680246138,-460.0,0.00019178,2]
[369655778,1751680246148,-460.0,0.00019452,2]
[369655779,1751680246157,-460.0,0.00019726,2]
[369655780,1751680246166,-460.0,0.0002,2]
[369655781,1751680246176,-55.92101716,0.00020538,3]
[369655782,1751680246184,-325.092133,0.00021424,2]
[369655783,1751680246194,-24751.63740349,0.000225,2]
[369655784,1751680246204,-12568.1,0.000225,7]
[369655785,1751680246213,-4085.30312569,0.000225,7]
[369655790,1751680535726,167.191999,0.00013699,2]
[369655792,1751680552546,-180.0,0.00016438,3]
[369655793,1751680552567,-251.08704,0.00018246,2]
[369655794,1751680552587,-189.10614511,0.00019078,2]
[369655795,1751680552609,-230.40116161,0.00019177,2]
[369655796,1751680552631,-160.0,0.00019177,2]
[369655797,1751680552653,-837.48520791,0.00019177,2]
[369655798,1751680552675,-11151.92044537,0.00019177,2]
[369655801,1751680797898,-200.0,0.00018082,3]
[369655802,1751680797920,-261.2976605,0.00018415,2]
[369655803,1751680797941,-185.47113061,0.00019078,2]
[369655804,1751680797962,-837.48520791,0.00019178,2]
[369655805,1751680797983,-230.40116161,0.00019178,2]
[369655806,1751680798004,-160.0,0.00019178,2]
[369655807,1751680798027,-460.0,0.00019178,2]
[369655808,1751680798049,-406.25762009,0.00019178,2]
[369655809,1751680798069,-460.0,0.00019178,2]
[369655810,1751680798089,-461.25262893,0.00019178,2]
[369655811,1751680798110,-460.0,0.00019178,2]
[369655812,1751680798133,-460.0,0.00019178,2]
[369655813,1751680798154,-1002.89218256,0.00019178,2]
[369655814,1751680798176,-460.0,0.00019178,2]
[369655815,1751680798202,-462.51129672,0.00019178,2]
[369655816,1751680798223,-462.7614612,0.00019178,2]
[369655817,1751680798243,-460.0,0.00019178,2]
[369655818,1751680798264,-462.48849881,0.00019178,2]
[369655819,1751680798286,-460.41892829,0.00019178,2]
[369655820,1751680798307,-461.06057056,0.00019178,2]
[369655821,1751680798327,-460.0,0.00019178,2]
[369655822,1751680798348,-461.23148433,0.00019178,2]
[369655823,1751680798368,-460.0,0.00019178,2]
[369655824,1751680798388,-460.0,0.00019178,2]
[369655825,1751680798409,-460.63133516,0.00019178,2]
[369655826,1751680798430,-526.76955712,0.00019178,2]
[369655827,1751680798450,-255.0692756,0.00019178,2]
[369655829,1751680991182,1325.19515086,0.00024456,120]
[369655833,1751681341929,-223.3673747,0.000162,2]
[369655834,1751681367235,-7055.15406841,0.000162,2]
[369655835,1751681387097,-176.53784178,0.00016038,2]
[369655836,1751681392351,-227.54305932,0.00016038,2]
[369655837,1751681396905,-254.13169763,0.00016038,2]
[369655838,1751681398474,-161.28279249,0.00016038,2]
[369655839,1751681400184,-192.60683683,0.00016038,2]
[369655841,1751681405476,-204.91819473,0.00016038,2]
[369655842,1751681409646,-250.36977329,0.00016038,2]
[369655843,1751681413555,-156.69500054,0.00016038,2]
[369655844,1751681417240,-158.64697995,0.00016038,2]
[369655845,1751681421075,-176.99112594,0.00016038,2]
[369655846,1751681423887,-153.63131699,0.00016038,2]
[369655847,1751681429713,-159.71681028,0.00015714,2]
[369655848,1751681432432,-39.24090736,0.00015714,2]
[369655849,1751681432442,-2886.64538051,0.00016038,2]
[369655850,1751681432452,-300.0,0.00016199,2]
[369655851,1751681432461,-9366.49875825,0.000162,2]
[369655852,1751681432487,-4574.97979864,0.000162,2]
[369655853,1751681432496,-167.0,0.00016438,3]